[Event "Titled Tuesday Blitz August 22 Early 2023"]
[White "Kowalysko, Roman"]
[Black "JERO-8914"]
[WhiteFideId "30918510"]
[WhiteElo "2155"]
[BlackElo "2440"]
[Result "1/2-1/2"]
[Round "2"]
[TimeControl "180+1"]
[Date "2023.08.22"]
[WhiteClock "0:01:37"]
[BlackClock "0:01:40"]
[Board "248"]

1. d4 {[%clk 0:03:00]}  d5 {[%clk 0:02:55]} 2. c4 {[%clk 0:02:59]}  dxc4 {[%clk 0:02:55]} 3. e3 {[%clk 0:02:58]}  Nf6 {[%clk 0:02:54]} 4. Bxc4 {[%clk 0:02:55]}  e6 {[%clk 0:02:54]} 5. Nf3 {[%clk 0:02:51]}  a6 {[%clk 0:02:54]} 6. O-O {[%clk 0:02:50]}  c5 {[%clk 0:02:54]} 7. a4 {[%clk 0:02:47]}  Nc6 {[%clk 0:02:49]} 8. Qe2 {[%clk 0:02:40]}  cxd4 {[%clk 0:02:47]} 9. Rd1 {[%clk 0:02:39]}  Be7 {[%clk 0:02:25]} 10. exd4 {[%clk 0:02:39]}  O-O {[%clk 0:02:24]} 11. Nc3 {[%clk 0:02:30]}  Nb4 {[%clk 0:02:24]} 12. Bg5 {[%clk 0:02:27]}  b6 {[%clk 0:02:16]} 13. Ne5 {[%clk 0:02:22]}  Bb7 {[%clk 0:02:15]} 14. Rac1 {[%clk 0:02:19]}  Rc8 {[%clk 0:02:14]} 15. Bb3 {[%clk 0:02:15]}  Nbd5 {[%clk 0:02:11]} 16. Nxd5 {[%clk 0:02:11]}  Nxd5 {[%clk 0:02:05]} 17. Rxc8 {[%clk 0:02:10]}  Qxc8 {[%clk 0:02:00]} 18. Bxe7 {[%clk 0:02:10]}  Nxe7 {[%clk 0:01:59]} 19. Qg4 {[%clk 0:02:10]}  Ng6 {[%clk 0:01:58]} 20. Nxg6 {[%clk 0:02:06]}  hxg6 {[%clk 0:01:58]} 21. h3 {[%clk 0:02:01]}  Rd8 {[%clk 0:01:58]} 22. d5 {[%clk 0:01:53]}  exd5 {[%clk 0:01:51]} 23. Qxc8 {[%clk 0:01:52]}  Rxc8 {[%clk 0:01:50]} 24. Bxd5 {[%clk 0:01:52]}  Rd8 {[%clk 0:01:44]} 25. Bf3 {[%clk 0:01:47]}  Rxd1+ {[%clk 0:01:42]} 26. Bxd1 {[%clk 0:01:47]}  a5 {[%clk 0:01:43]} 27. g3 {[%clk 0:01:38]}  Kf8 {[%clk 0:01:42]} 28. Kf1 {[%clk 0:01:39]}  Ke7 {[%clk 0:01:43]} 29. Ke2 {[%clk 0:01:39]}  Kd6 {[%clk 0:01:44]} 30. Kd3 {[%clk 0:01:38]}  Kc5 {[%clk 0:01:45]} 31. Kc3 {[%clk 0:01:39]}  g5 {[%clk 0:01:43]} 32. Bh5 {[%clk 0:01:30]}  f6 {[%clk 0:01:43]} 33. Be8 {[%clk 0:01:29]}  Ba6 {[%clk 0:01:44]} 34. h4 {[%clk 0:01:29]}  gxh4 {[%clk 0:01:43]} 35. gxh4 {[%clk 0:01:29]}  Kd5 {[%clk 0:01:43]} 36. b4 {[%clk 0:01:23]}  axb4+ {[%clk 0:01:40]} 37. Kxb4 {[%clk 0:01:24]}  Ke4 {[%clk 0:01:39]} 38. Bc6+ {[%clk 0:01:22]}  Kf4 {[%clk 0:01:38]} 39. h5 {[%clk 0:01:21]}  Kg5 {[%clk 0:01:37]} 40. Be8 {[%clk 0:01:21]}  Kf4 {[%clk 0:01:36]} 41. a5 {[%clk 0:01:22]}  bxa5+ {[%clk 0:01:36]} 42. Kxa5 {[%clk 0:01:23]}  Be2 {[%clk 0:01:35]} 43. Kb4 {[%clk 0:01:17]}  Kf3 {[%clk 0:01:35]} 44. Kc5 {[%clk 0:01:15]}  Kxf2 {[%clk 0:01:29]} 45. Kd6 {[%clk 0:01:14]}  Kg3 {[%clk 0:01:29]} 46. Ke6 {[%clk 0:01:14]}  Kh4 {[%clk 0:01:26]} 47. h6 {[%clk 0:01:15]}  gxh6 {[%clk 0:01:25]} 48. Kxf6 {[%clk 0:01:16]}  Bh5 {[%clk 0:01:24]} 49. Bxh5 {[%clk 0:01:14]}  Kxh5 {[%clk 0:01:24]} 50. Kf5 {[%clk 0:01:14]}  Kh4 {[%clk 0:01:23]} 51. Kf4 {[%clk 0:01:15]}  Kh3 {[%clk 0:01:23]} 52. Kf3 {[%clk 0:01:16]}  Kh2 {[%clk 0:01:23]} 53. Kf2 {[%clk 0:01:17]}  h5 {[%clk 0:01:23]} 54. Kf1 {[%clk 0:01:18]}  h4 {[%clk 0:01:23]} 55. Kf2 {[%clk 0:01:19]}  Kh1 {[%clk 0:01:20]} 56. Kf1 {[%clk 0:01:19]}  h3 {[%clk 0:01:21]} 57. Kf2 {[%clk 0:01:20]}  Kh2 {[%clk 0:01:21]} 58. Kf1 {[%clk 0:01:21]}  Kg3 {[%clk 0:01:22]} 59. Kg1 {[%clk 0:01:22]}  Kg4 {[%clk 0:01:06]} 60. Kh1 {[%clk 0:01:21]}  Kh4 {[%clk 0:01:07]} 61. Kh2 {[%clk 0:01:21]}  Kg4 {[%clk 0:01:08]} 62. Kh1 {[%clk 0:01:22]}  Kh4 {[%clk 0:01:09]} 63. Kg1 {[%clk 0:01:22]}  Kg4 {[%clk 0:01:10]} 64. Kh2 {[%clk 0:01:23]}  Kh4 {[%clk 0:01:11]} 65. Kh1 {[%clk 0:01:23]}  Kg4 {[%clk 0:01:12]} 66. Kg1 {[%clk 0:01:24]}  Kh4 {[%clk 0:01:13]} 67. Kf2 {[%clk 0:01:21]}  Kg5 {[%clk 0:01:14]} 68. Kg3 {[%clk 0:01:21]}  Kf6 {[%clk 0:01:15]} 69. Kh2 {[%clk 0:01:21]}  Ke7 {[%clk 0:01:15]} 70. Kg3 {[%clk 0:01:22]}  Kd8 {[%clk 0:01:16]} 71. Kf2 {[%clk 0:01:22]}  Kc7 {[%clk 0:01:17]} 72. Kg1 {[%clk 0:01:22]}  Kb6 {[%clk 0:01:18]} 73. Kh1 {[%clk 0:01:22]}  Ka5 {[%clk 0:01:19]} 74. Kh2 {[%clk 0:01:22]}  Ka4 {[%clk 0:01:20]} 75. Kg3 {[%clk 0:01:23]}  Ka3 {[%clk 0:01:21]} 76. Kf2 {[%clk 0:01:23]}  Ka2 {[%clk 0:01:22]} 77. Kg1 {[%clk 0:01:23]}  Ka1 {[%clk 0:01:23]} 78. Kh1 {[%clk 0:01:24]}  Kb1 {[%clk 0:01:24]} 79. Kh2 {[%clk 0:01:25]}  Kc1 {[%clk 0:01:24]} 80. Kh1 {[%clk 0:01:25]}  Kb2 {[%clk 0:01:25]} 81. Kg1 {[%clk 0:01:26]}  Kc3 {[%clk 0:01:26]} 82. Kh2 {[%clk 0:01:27]}  Kb4 {[%clk 0:01:27]} 83. Kg3 {[%clk 0:01:28]}  Kc5 {[%clk 0:01:28]} 84. Kf2 {[%clk 0:01:28]}  Kb6 {[%clk 0:01:29]} 85. Kg1 {[%clk 0:01:28]}  Kc7 {[%clk 0:01:30]} 86. Kh2 {[%clk 0:01:29]}  Kb8 {[%clk 0:01:31]} 87. Kg3 {[%clk 0:01:30]}  Ka7 {[%clk 0:01:32]} 88. Kf2 {[%clk 0:01:30]}  Ka6 {[%clk 0:01:33]} 89. Kf3 {[%clk 0:01:31]}  Kb5 {[%clk 0:01:33]} 90. Kf2 {[%clk 0:01:31]}  Ka4 {[%clk 0:01:34]} 91. Kf1 {[%clk 0:01:32]}  Kb3 {[%clk 0:01:35]} 92. Kg1 {[%clk 0:01:33]}  Ka2 {[%clk 0:01:36]} 93. Kh1 {[%clk 0:01:34]}  Kb1 {[%clk 0:01:37]} 94. Kg1 {[%clk 0:01:35]}  Kc2 {[%clk 0:01:38]} 95. Kh2 {[%clk 0:01:36]}  Kd3 {[%clk 0:01:39]} 96. Kg3 {[%clk 0:01:36]}  Ke4 {[%clk 0:01:40]} 97. Kxh3 {[%clk 0:01:37]} 1/2-1/2


[Site "https://www.chess.com"]

[Event "Titled Tuesday Blitz August 22 Early 2023"]
[White "Baruch, Liam"]
[Black "Vivas Zamora, Fabian Ernesto"]
[WhiteFideId "14322064"]
[BlackFideId "3902480"]
[WhiteElo "2142"]
[BlackElo "2439"]
[Result "1/2-1/2"]
[Round "2"]
[TimeControl "180+1"]
[Date "2023.08.22"]
[WhiteClock "0:00:04"]
[BlackClock "0:00:19"]
[Board "250"]

1. e4 {[%clk 0:03:00]}  c5 {[%clk 0:02:56]} 2. Nf3 {[%clk 0:03:01]}  d6 {[%clk 0:02:56]} 3. d4 {[%clk 0:03:01]}  cxd4 {[%clk 0:02:56]} 4. Nxd4 {[%clk 0:03:02]}  Nf6 {[%clk 0:02:57]} 5. Nc3 {[%clk 0:03:03]}  g6 {[%clk 0:02:58]} 6. Be2 {[%clk 0:03:03]}  Bg7 {[%clk 0:02:58]} 7. O-O {[%clk 0:03:04]}  O-O {[%clk 0:02:59]} 8. Re1 {[%clk 0:02:59]}  Bd7 {[%clk 0:02:54]} 9. Bf1 {[%clk 0:02:56]}  Nc6 {[%clk 0:02:54]} 10. Nd5 {[%clk 0:02:46]}  Nxd5 {[%clk 0:02:31]} 11. Nxc6 {[%clk 0:02:46]}  bxc6 {[%clk 0:02:31]} 12. exd5 {[%clk 0:02:46]}  cxd5 {[%clk 0:02:31]} 13. Qxd5 {[%clk 0:02:47]}  Rb8 {[%clk 0:02:25]} 14. c3 {[%clk 0:02:43]}  Be6 {[%clk 0:02:19]} 15. Qf3 {[%clk 0:02:38]}  Qa5 {[%clk 0:02:06]} 16. a3 {[%clk 0:02:26]}  Rfc8 {[%clk 0:01:55]} 17. Bg5 {[%clk 0:02:07]}  Qxg5 {[%clk 0:01:53]} 18. Ba6 {[%clk 0:01:41]}  Rc5 {[%clk 0:01:43]} 19. Re3 {[%clk 0:01:29]}  Rxb2 {[%clk 0:01:39]} 20. Rae1 {[%clk 0:01:13]}  h5 {[%clk 0:01:36]} 21. h4 {[%clk 0:00:52]}  Qxh4 {[%clk 0:01:33]} 22. Bd3 {[%clk 0:00:46]}  Rxc3 {[%clk 0:01:20]} 23. Re4 {[%clk 0:00:26]}  Rxd3 {[%clk 0:01:02]} 24. Rxh4 {[%clk 0:00:18]}  Rxf3 {[%clk 0:01:02]} 25. gxf3 {[%clk 0:00:19]}  Rb3 {[%clk 0:00:58]} 26. Ra4 {[%clk 0:00:18]}  a5 {[%clk 0:00:54]} 27. Rxa5 {[%clk 0:00:17]}  Bd4 {[%clk 0:00:48]} 28. Ra8+ {[%clk 0:00:18]}  Kg7 {[%clk 0:00:47]} 29. Rd1 {[%clk 0:00:18]}  Bc5 {[%clk 0:00:46]} 30. a4 {[%clk 0:00:18]}  Rxf3 {[%clk 0:00:45]} 31. Rd2 {[%clk 0:00:17]}  Ra3 {[%clk 0:00:37]} 32. a5 {[%clk 0:00:15]}  Bc4 {[%clk 0:00:33]} 33. Kh2 {[%clk 0:00:12]}  d5 {[%clk 0:00:29]} 34. Kg2 {[%clk 0:00:10]}  Bb4 {[%clk 0:00:26]} 35. Rd1 {[%clk 0:00:09]}  Rxa5 {[%clk 0:00:26]} 36. Re8 {[%clk 0:00:07]}  e6 {[%clk 0:00:22]} 37. Rc8 {[%clk 0:00:06]}  Rc5 {[%clk 0:00:20]} 38. Rb8 {[%clk 0:00:06]}  Bc3 {[%clk 0:00:21]} 39. Rbb1 {[%clk 0:00:06]}  d4 {[%clk 0:00:21]} 40. Kh2 {[%clk 0:00:06]}  Bd5 {[%clk 0:00:22]} 41. Rbc1 {[%clk 0:00:05]}  e5 {[%clk 0:00:22]} 42. Rd3 {[%clk 0:00:06]}  Be4 {[%clk 0:00:22]} 43. Rg3 {[%clk 0:00:05]}  d3 {[%clk 0:00:22]} 44. Rd1 {[%clk 0:00:05]}  d2 {[%clk 0:00:21]} 45. Re3 {[%clk 0:00:06]}  Bc2 {[%clk 0:00:21]} 46. Rxc3 {[%clk 0:00:05]}  Rxc3 {[%clk 0:00:21]} 47. Rxd2 {[%clk 0:00:05]}  Bf5 {[%clk 0:00:20]} 48. Kg2 {[%clk 0:00:06]}  h4 {[%clk 0:00:20]} 49. Kh2 {[%clk 0:00:06]}  g5 {[%clk 0:00:20]} 50. f4 {[%clk 0:00:06]}  exf4 {[%clk 0:00:20]} 51. Rg2 {[%clk 0:00:07]}  g4 {[%clk 0:00:20]} 52. Kg1 {[%clk 0:00:07]}  g3 {[%clk 0:00:20]} 53. Re2 {[%clk 0:00:06]}  f3 {[%clk 0:00:19]} 54. Re1 {[%clk 0:00:04]}  f2+ {[%clk 0:00:19]} 55. Kg2 {[%clk 0:00:04]}  fxe1=Q {[%clk 0:00:19]} 1/2-1/2


[Site "https://www.chess.com"]

[Event "Titled Tuesday Blitz August 22 Early 2023"]
[White "Cagara, Paulina"]
[Black "Mrudul Dehankar"]
[WhiteFideId "1124870"]
[BlackFideId "25096990"]
[WhiteElo "2129"]
[BlackElo "2437"]
[Result "0-1"]
[Round "2"]
[TimeControl "180+1"]
[Date "2023.08.22"]
[WhiteClock "0:00:54"]
[BlackClock "0:00:40"]
[Board "252"]

1. e4 {[%clk 0:03:00]}  c6 {[%clk 0:03:00]} 2. d4 {[%clk 0:03:00]}  d5 {[%clk 0:03:00]} 3. exd5 {[%clk 0:02:59]}  cxd5 {[%clk 0:03:01]} 4. Bd3 {[%clk 0:03:00]}  Nc6 {[%clk 0:03:00]} 5. c3 {[%clk 0:02:59]}  Qc7 {[%clk 0:02:59]} 6. Ne2 {[%clk 0:02:55]}  Nf6 {[%clk 0:02:54]} 7. Bf4 {[%clk 0:02:54]}  Qb6 {[%clk 0:02:49]} 8. Qb3 {[%clk 0:02:53]}  Qd8 {[%clk 0:02:36]} 9. h3 {[%clk 0:02:47]}  g6 {[%clk 0:02:37]} 10. Na3 {[%clk 0:02:44]}  Bg7 {[%clk 0:02:37]} 11. Nb5 {[%clk 0:02:43]}  O-O {[%clk 0:02:27]} 12. O-O {[%clk 0:02:42]}  a6 {[%clk 0:02:21]} 13. Na3 {[%clk 0:02:31]}  b5 {[%clk 0:02:20]} 14. Nc2 {[%clk 0:02:30]}  Na5 {[%clk 0:02:19]} 15. Qa3 {[%clk 0:02:27]}  Nc4 {[%clk 0:02:17]} 16. Bxc4 {[%clk 0:02:27]}  dxc4 {[%clk 0:02:13]} 17. Ne3 {[%clk 0:02:24]}  Bb7 {[%clk 0:02:12]} 18. Ng3 {[%clk 0:02:19]}  Nd5 {[%clk 0:02:08]} 19. Nxd5 {[%clk 0:02:14]}  Qxd5 {[%clk 0:02:07]} 20. f3 {[%clk 0:02:09]}  Rfe8 {[%clk 0:02:06]} 21. Rfe1 {[%clk 0:02:07]}  a5 {[%clk 0:01:24]} 22. Rxe7 {[%clk 0:01:59]}  b4 {[%clk 0:01:23]} 23. Rxe8+ {[%clk 0:01:58]}  Rxe8 {[%clk 0:01:23]} 24. Qa4 {[%clk 0:01:56]}  Bc6 {[%clk 0:01:18]} 25. Qc2 {[%clk 0:01:55]}  Bxd4+ {[%clk 0:01:16]} 26. cxd4 {[%clk 0:01:52]}  Qxd4+ {[%clk 0:01:16]} 27. Be3 {[%clk 0:01:39]}  Rxe3 {[%clk 0:01:01]} 28. Qf2 {[%clk 0:01:38]}  Qe5 {[%clk 0:00:58]} 29. Nf1 {[%clk 0:01:33]}  Re2 {[%clk 0:00:57]} 30. Qb6 {[%clk 0:01:29]}  Qxb2 {[%clk 0:00:51]} 31. Rd1 {[%clk 0:01:14]}  Rxg2+ {[%clk 0:00:49]} 32. Kh1 {[%clk 0:01:13]}  Bxf3 {[%clk 0:00:43]} 33. Rd8+ {[%clk 0:01:02]}  Kg7 {[%clk 0:00:42]} 34. Qd4+ {[%clk 0:00:59]}  Qxd4 {[%clk 0:00:41]} 35. Rxd4 {[%clk 0:01:00]}  Rd2+ {[%clk 0:00:40]} 36. Kg1 {[%clk 0:00:54]}  Rxd4 {[%clk 0:00:40]} 0-1


[Site "https://www.chess.com"]

[Event "Titled Tuesday Blitz August 22 Early 2023"]
[White "Eggleston, Thomas A"]
[Black "Flis, Pawel"]
[WhiteFideId "412139"]
[BlackFideId "1112864"]
[WhiteElo "2431"]
[BlackElo "2121"]
[Result "0-1"]
[Round "2"]
[TimeControl "180+1"]
[Date "2023.08.22"]
[WhiteClock "0:00:00"]
[BlackClock "0:00:23"]
[Board "254"]

1. d4 {[%clk 0:03:00]}  Nf6 {[%clk 0:02:53]} 2. c4 {[%clk 0:03:00]}  g6 {[%clk 0:02:53]} 3. Nc3 {[%clk 0:03:00]}  Bg7 {[%clk 0:02:54]} 4. e4 {[%clk 0:03:00]}  O-O {[%clk 0:02:54]} 5. Be2 {[%clk 0:03:00]}  d6 {[%clk 0:02:54]} 6. h4 {[%clk 0:02:55]}  c5 {[%clk 0:02:52]} 7. d5 {[%clk 0:02:55]}  b5 {[%clk 0:02:51]} 8. cxb5 {[%clk 0:02:53]}  a6 {[%clk 0:02:51]} 9. b6 {[%clk 0:02:52]}  Qxb6 {[%clk 0:02:46]} 10. h5 {[%clk 0:02:52]}  e6 {[%clk 0:02:44]} 11. h6 {[%clk 0:02:49]}  Bh8 {[%clk 0:02:43]} 12. dxe6 {[%clk 0:02:44]}  Bxe6 {[%clk 0:02:29]} 13. Nf3 {[%clk 0:02:43]}  Nc6 {[%clk 0:02:28]} 14. O-O {[%clk 0:02:32]}  Rad8 {[%clk 0:02:20]} 15. Rb1 {[%clk 0:02:19]}  d5 {[%clk 0:02:16]} 16. e5 {[%clk 0:02:12]}  Ne4 {[%clk 0:02:14]} 17. Na4 {[%clk 0:02:01]}  Qa5 {[%clk 0:02:09]} 18. Bf4 {[%clk 0:01:59]}  Bf5 {[%clk 0:01:52]} 19. a3 {[%clk 0:01:45]}  Nxf2 {[%clk 0:01:30]} 20. b4 {[%clk 0:01:23]}  cxb4 {[%clk 0:01:20]} 21. Rxf2 {[%clk 0:01:19]}  Bxb1 {[%clk 0:01:17]} 22. Qxb1 {[%clk 0:01:00]}  Qxa4 {[%clk 0:01:17]} 23. axb4 {[%clk 0:00:59]}  Nxb4 {[%clk 0:01:12]} 24. Bd1 {[%clk 0:00:41]}  Qa3 {[%clk 0:01:02]} 25. Bc1 {[%clk 0:00:36]}  Qd3 {[%clk 0:00:43]} 26. Qxb4 {[%clk 0:00:23]}  Qxd1+ {[%clk 0:00:42]} 27. Rf1 {[%clk 0:00:24]}  Qd3 {[%clk 0:00:34]} 28. Bg5 {[%clk 0:00:24]}  Rb8 {[%clk 0:00:32]} 29. Qe7 {[%clk 0:00:21]}  Rb1 {[%clk 0:00:27]} 30. Rxb1 {[%clk 0:00:16]}  Qxb1+ {[%clk 0:00:28]} 31. Kh2 {[%clk 0:00:16]}  Qb8 {[%clk 0:00:26]} 32. Bf6 {[%clk 0:00:00]}  Re8 {[%clk 0:00:23]} 0-1


[Site "https://www.chess.com"]

[Event "Titled Tuesday Blitz August 22 Early 2023"]
[White "Floresvillar Gonzalez, Luis Migu"]
[Black "Rangel, Daniel"]
[WhiteFideId "5100542"]
[BlackFideId "2124475"]
[WhiteElo "2121"]
[BlackElo "2431"]
[Result "0-1"]
[Round "2"]
[TimeControl "180+1"]
[Date "2023.08.22"]
[WhiteClock "0:00:06"]
[BlackClock "0:01:18"]
[Board "255"]

1. e4 {[%clk 0:03:00]}  c5 {[%clk 0:02:58]} 2. d4 {[%clk 0:03:00]}  cxd4 {[%clk 0:02:58]} 3. c3 {[%clk 0:03:01]}  d3 {[%clk 0:02:58]} 4. Bxd3 {[%clk 0:03:00]}  d6 {[%clk 0:02:59]} 5. Nf3 {[%clk 0:02:59]}  e6 {[%clk 0:03:00]} 6. Bg5 {[%clk 0:02:59]}  Nf6 {[%clk 0:03:00]} 7. O-O {[%clk 0:02:54]}  Be7 {[%clk 0:03:00]} 8. e5 {[%clk 0:02:49]}  dxe5 {[%clk 0:03:00]} 9. Nxe5 {[%clk 0:02:48]}  Nbd7 {[%clk 0:03:00]} 10. Nf3 {[%clk 0:02:27]}  O-O {[%clk 0:02:59]} 11. Qe2 {[%clk 0:02:27]}  Nc5 {[%clk 0:02:56]} 12. Bc2 {[%clk 0:02:24]}  Re8 {[%clk 0:02:50]} 13. Rd1 {[%clk 0:02:21]}  Qc7 {[%clk 0:02:49]} 14. Nbd2 {[%clk 0:02:18]}  Bd7 {[%clk 0:02:47]} 15. Bxf6 {[%clk 0:02:10]}  Bxf6 {[%clk 0:02:46]} 16. Ne4 {[%clk 0:02:09]}  Nxe4 {[%clk 0:02:44]} 17. Qxe4 {[%clk 0:02:09]}  g6 {[%clk 0:02:44]} 18. Rd2 {[%clk 0:02:00]}  Bc6 {[%clk 0:02:43]} 19. Qe2 {[%clk 0:02:00]}  Kg7 {[%clk 0:02:41]} 20. Rad1 {[%clk 0:02:00]}  h5 {[%clk 0:02:40]} 21. Nd4 {[%clk 0:01:56]}  Bd5 {[%clk 0:02:35]} 22. Be4 {[%clk 0:01:53]}  Bxa2 {[%clk 0:02:23]} 23. Nb5 {[%clk 0:01:34]}  Qc4 {[%clk 0:02:07]} 24. Bxb7 {[%clk 0:01:24]}  Qxe2 {[%clk 0:02:01]} 25. Rxe2 {[%clk 0:01:23]}  Rab8 {[%clk 0:02:02]} 26. Nd6 {[%clk 0:01:22]}  Re7 {[%clk 0:01:56]} 27. Bf3 {[%clk 0:01:19]}  Bb3 {[%clk 0:01:54]} 28. Ra1 {[%clk 0:01:16]}  Rd7 {[%clk 0:01:52]} 29. Ne4 {[%clk 0:01:13]}  Be7 {[%clk 0:01:46]} 30. Rd2 {[%clk 0:01:11]}  Rbd8 {[%clk 0:01:42]} 31. Rxd7 {[%clk 0:01:10]}  Rxd7 {[%clk 0:01:43]} 32. g3 {[%clk 0:01:07]}  f5 {[%clk 0:01:41]} 33. Nd2 {[%clk 0:00:50]}  Rxd2 {[%clk 0:01:39]} 34. Rxa7 {[%clk 0:00:51]}  Kf6 {[%clk 0:01:39]} 35. h4 {[%clk 0:00:39]}  Rxf2 {[%clk 0:01:37]} 36. Rxe7 {[%clk 0:00:30]}  Rxf3 {[%clk 0:01:36]} 37. Rb7 {[%clk 0:00:29]}  Bd5 {[%clk 0:01:34]} 38. Rb4 {[%clk 0:00:25]}  Rxg3+ {[%clk 0:01:33]} 39. Kh2 {[%clk 0:00:25]}  Rg4 {[%clk 0:01:33]} 40. Rb6 {[%clk 0:00:22]}  Rxh4+ {[%clk 0:01:32]} 41. Kg3 {[%clk 0:00:22]}  Rg4+ {[%clk 0:01:32]} 42. Kh3 {[%clk 0:00:22]}  h4 {[%clk 0:01:29]} 43. b4 {[%clk 0:00:21]}  g5 {[%clk 0:01:29]} 44. Rb8 {[%clk 0:00:20]}  Rg3+ {[%clk 0:01:28]} 45. Kh2 {[%clk 0:00:20]}  Rg2+ {[%clk 0:01:27]} 46. Kh3 {[%clk 0:00:18]}  f4 {[%clk 0:01:24]} 47. c4 {[%clk 0:00:17]}  g4+ {[%clk 0:01:23]} 48. Kxh4 {[%clk 0:00:16]}  Bf3 {[%clk 0:01:23]} 49. Rf8+ {[%clk 0:00:12]}  Ke5 {[%clk 0:01:21]} 50. Rxf4 {[%clk 0:00:06]}  Kxf4 {[%clk 0:01:18]} 51. c5 {[%clk 0:00:06]}  Rh2# {[%clk 0:01:18]} 0-1


[Site "https://www.chess.com"]

[Event "Titled Tuesday Blitz August 22 Early 2023"]
[White "Pein, Jonathan"]
[Black "Latreche, Khadidja"]
[WhiteFideId "417092"]
[BlackFideId "7901780"]
[WhiteElo "2427"]
[BlackElo "2085"]
[Result "0-1"]
[Round "2"]
[TimeControl "180+1"]
[Date "2023.08.22"]
[WhiteClock "0:01:21"]
[BlackClock "0:00:24"]
[Board "259"]

1. e4 {[%clk 0:02:59]}  c5 {[%clk 0:02:59]} 2. Nc3 {[%clk 0:02:58]}  e6 {[%clk 0:03:00]} 3. Nge2 {[%clk 0:02:52]}  Nc6 {[%clk 0:02:59]} 4. d4 {[%clk 0:02:51]}  cxd4 {[%clk 0:02:59]} 5. Nxd4 {[%clk 0:02:52]}  Qc7 {[%clk 0:02:59]} 6. Be3 {[%clk 0:02:31]}  a6 {[%clk 0:02:59]} 7. Nxc6 {[%clk 0:02:31]}  dxc6 {[%clk 0:02:52]} 8. Bd3 {[%clk 0:02:29]}  Nf6 {[%clk 0:02:52]} 9. Qf3 {[%clk 0:02:27]}  e5 {[%clk 0:02:46]} 10. h4 {[%clk 0:02:27]}  Bb4 {[%clk 0:02:32]} 11. Qg3 {[%clk 0:02:26]}  g6 {[%clk 0:02:25]} 12. a3 {[%clk 0:02:18]}  Be7 {[%clk 0:02:06]} 13. Rd1 {[%clk 0:02:15]}  Be6 {[%clk 0:02:05]} 14. Kf1 {[%clk 0:02:08]}  O-O-O {[%clk 0:01:57]} 15. Ba7 {[%clk 0:02:05]}  b5 {[%clk 0:01:21]} 16. Be3 {[%clk 0:01:54]}  Ng4 {[%clk 0:01:14]} 17. Bd2 {[%clk 0:01:46]}  f5 {[%clk 0:01:10]} 18. f3 {[%clk 0:01:44]}  f4 {[%clk 0:01:03]} 19. Qe1 {[%clk 0:01:36]}  Nf6 {[%clk 0:00:57]} 20. a4 {[%clk 0:01:36]}  Nh5 {[%clk 0:00:49]} 21. axb5 {[%clk 0:01:26]}  Ng3+ {[%clk 0:00:47]} 22. Kg1 {[%clk 0:01:25]}  Bc5+ {[%clk 0:00:39]} 23. Kh2 {[%clk 0:01:23]}  Qe7 {[%clk 0:00:32]} 24. Qxg3 {[%clk 0:01:19]}  fxg3+ {[%clk 0:00:32]} 25. Kxg3 {[%clk 0:01:20]}  cxb5 {[%clk 0:00:31]} 26. Bg5 {[%clk 0:01:20]}  Qf7 {[%clk 0:00:25]} 27. Bxd8 {[%clk 0:01:21]}  Qf4# {[%clk 0:00:24]} 0-1


[Site "https://www.chess.com"]

[Event "Titled Tuesday Blitz August 22 Early 2023"]
[White "Sericano, Claudio"]
[Black "Baghdasaryan, Vahe"]
[WhiteFideId "800473"]
[BlackFideId "13303139"]
[WhiteElo "2057"]
[BlackElo "2426"]
[Result "0-1"]
[Round "2"]
[TimeControl "180+1"]
[Date "2023.08.22"]
[WhiteClock "0:00:07"]
[BlackClock "0:00:18"]
[Board "260"]

1. e4 {[%clk 0:03:00]}  e5 {[%clk 0:02:59]} 2. Nf3 {[%clk 0:02:59]}  Nc6 {[%clk 0:03:00]} 3. Bb5 {[%clk 0:02:59]}  a6 {[%clk 0:02:59]} 4. Ba4 {[%clk 0:02:58]}  Nf6 {[%clk 0:02:59]} 5. O-O {[%clk 0:02:58]}  Be7 {[%clk 0:02:58]} 6. d4 {[%clk 0:02:58]}  Nxd4 {[%clk 0:02:51]} 7. Nxd4 {[%clk 0:02:54]}  exd4 {[%clk 0:02:50]} 8. e5 {[%clk 0:02:55]}  Nd5 {[%clk 0:02:47]} 9. Qxd4 {[%clk 0:02:55]}  c6 {[%clk 0:02:43]} 10. Bb3 {[%clk 0:02:55]}  Nc7 {[%clk 0:02:42]} 11. Nc3 {[%clk 0:02:51]}  Ne6 {[%clk 0:02:41]} 12. Qg4 {[%clk 0:02:45]}  O-O {[%clk 0:02:25]} 13. Bh6 {[%clk 0:02:41]}  Ng5 {[%clk 0:02:16]} 14. Bxg5 {[%clk 0:02:06]}  Bxg5 {[%clk 0:02:17]} 15. Ne4 {[%clk 0:02:07]}  Be7 {[%clk 0:01:52]} 16. Nd6 {[%clk 0:02:06]}  Bxd6 {[%clk 0:01:52]} 17. exd6 {[%clk 0:02:07]}  Qf6 {[%clk 0:01:51]} 18. Rad1 {[%clk 0:01:58]}  Qxb2 {[%clk 0:01:47]} 19. Rfe1 {[%clk 0:01:58]}  b5 {[%clk 0:01:41]} 20. Re7 {[%clk 0:01:57]}  c5 {[%clk 0:01:38]} 21. Rxf7 {[%clk 0:01:39]}  Rxf7 {[%clk 0:01:33]} 22. Qf3 {[%clk 0:01:33]}  c4 {[%clk 0:01:05]} 23. Qxa8 {[%clk 0:01:29]}  Rf8 {[%clk 0:01:05]} 24. Bxc4+ {[%clk 0:00:49]}  bxc4 {[%clk 0:01:02]} 25. Qd5+ {[%clk 0:00:48]}  Kh8 {[%clk 0:01:01]} 26. Qxc4 {[%clk 0:00:48]}  Qf6 {[%clk 0:00:51]} 27. f3 {[%clk 0:00:46]}  Bb7 {[%clk 0:00:47]} 28. Qc7 {[%clk 0:00:42]}  Bc6 {[%clk 0:00:46]} 29. c4 {[%clk 0:00:37]}  Bxf3 {[%clk 0:00:19]} 30. Rf1 {[%clk 0:00:10]}  Qd4+ {[%clk 0:00:18]} 31. Kh1 {[%clk 0:00:11]}  Bxg2+ {[%clk 0:00:18]} 32. Kxg2 {[%clk 0:00:07]}  Qg4+ {[%clk 0:00:18]} 0-1


[Site "https://www.chess.com"]